bitfinex-derivatives/quotes_ETHF0:USTF0_20250106
["timestamp","ask_amount","ask_price","bid_price","bid_amount"]
[1736173964757,0.27469,3642.1,3641.8,3.2078]
[1736173964975,4.3608,3642.3,3641.8,3.2078]
[1736173965356,0.27468,3642.2,3641.8,3.2078]
[1736173965556,4.3608,3642.3,3641.8,3.2078]
[1736173965755,3.2078,3642.3,3642.1,0.27469]
[1736173966059,3.2078,3642.3,3641.9,3.02281851]
[1736173966259,3.2078,3642.3,3642.0,0.27469]
[1736173966560,3.2078,3642.3,3641.9,3.02281851]
[1736173966561,3.48247,3642.3,3641.9,3.29751851]
[1736173966864,3.2078,3642.3,3641.8,3.2078]
[1736173967057,0.27468,3642.2,3641.8,3.2078]
[1736173967263,4.3608,3642.8,3641.8,3.2078]
[1736173967456,0.2747,3642.0,3641.8,3.2078]
[1736173967764,1.153,3642.8,3641.8,3.2078]
[1736173967956,1.153,3642.8,3642.0,0.27469]
[1736173968265,0.27467,3642.3,3641.9,3.29751851]
[1736173968657,0.27468,3642.2,3641.9,3.02281851]
[1736173968958,0.27468,3642.2,3642.1,40.8]
[1736173969863,3.2078,3642.6,3642.1,40.8]
[1736173970362,0.27466,3642.5,3642.1,40.8]
[1736173970563,3.2078,3642.6,3642.1,40.8]
[1736173970764,0.27468,3642.2,3642.1,40.8]
[1736173970960,3.2078,3642.6,3642.1,40.8]
[1736173971161,3.2078,3642.6,3641.7,3.7953]
[1736173971365,3.2078,3642.2,3641.3,3.2078]
[1736173971661,3.2078,3641.8,3640.9,7.48681851]
[1736173971858,0.27474,3641.5,3641.0,0.27476]
[1736173972059,0.27477,3641.0,3640.9,0.6166]
[1736173972257,3.2078,3641.4,3640.9,40.8]
[1736173972477,0.27477,3641.0,3640.9,40.8]
[1736173972959,0.27481,3640.5,3640.3,3.2078]
[1736173973163,4.3608,3640.6,3639.5,4.3995]
[1736173973364,0.27486,3639.9,3639.5,3.2078]
[1736173973563,1.153,3639.8,3639.6,41.07487]
[1736173973764,1.153,3639.8,3639.6,40.8]
[1736173974163,0.27487,3639.7,3639.6,40.8]
[1736173976164,3.2078,3639.7,3638.6,0.6032]
[1736173976361,0.27494,3638.8,3638.6,0.6032]
[1736173976557,4.3608,3638.9,3638.1,3.2078]
[1736173976758,3.2078,3638.4,3637.1,3.2078]
[1736173976966,3.2078,3637.9,3637.1,3.2078]
[1736173977264,0.27501,3637.8,3636.7,6.23061851]
[1736173977465,0.27505,3637.3,3636.7,0.27509]
[1736173977670,1.153,3637.2,3636.6,1.2308]
[1736173977962,3.2078,3637.0,3636.4,6.31839503]
[1736173978163,0.27508,3636.9,3636.4,6.31839503]
[1736173978770,3.2078,3637.0,3636.2,0.27513]
[1736173978771,3.48288,3637.0,3636.2,0.27513]
[1736173979063,0.27509,3636.8,3635.9,0.27515]
[1736173979270,3.2078,3637.0,3636.3,40.8]
[1736173979658,3.48287,3637.0,3636.3,40.8]
[1736173979865,1.153,3637.2,3636.6,3.4829]
[1736173980062,1.153,3637.2,3636.6,3.2078]
[1736173980368,1.153,3637.2,3636.6,3.4829]
[1736173980661,1.153,3637.2,3636.6,3.2078]
[1736173981061,0.27509,3636.8,3636.3,40.8]
[1736173981256,0.27509,3636.8,3635.8,3.2078]
[1736173981257,3.2078,3636.6,3635.8,3.2078]
[1736173981461,0.27517,3635.8,3635.2,1.2327]
[1736173981661,1.165,3635.7,3635.2,0.6083]
[1736173981868,1.165,3635.7,3635.3,40.8]
[1736173982461,0.6232,3637.0,3635.3,44.0078]
[1736173982462,3.2078,3636.6,3635.3,44.0078]
[1736173982664,1.165,3636.5,3635.7,6.23061851]
[1736173983169,1.165,3636.5,3635.9,0.27515]
[1736173983368,1.165,3636.5,3635.7,6.23061851]
[1736173983574,1.165,3636.5,3635.8,0.27516]
[1736173984071,1.165,3636.5,3635.7,3.2078]
[1736173984570,0.27512,3636.4,3635.7,3.2078]
[1736173985165,0.27512,3636.4,3635.7,3.48297]
[1736173985366,1.165,3636.5,3635.9,0.27515]
[1736173985673,1.165,3636.5,3635.7,6.23061851]
[1736173985870,8.24653,3637.8,3635.7,6.23061851]
[1736173985871,3.2078,3637.0,3636.1,3.2078]
[1736173986169,8.24653,3637.8,3636.5,3.2078]
[1736173986170,4.3728,3637.4,3636.5,3.2078]
[1736173986365,3.2078,3637.4,3636.8,0.27508]
[1736173986573,3.2078,3637.4,3636.9,3.2078]
[1736173986769,1.165,3637.7,3637.4,0.27504]
[1736173986963,1.165,3637.7,3637.3,0.27505]
[1736173987371,1.165,3637.7,3637.5,41.07503]
[1736173987673,1.165,3637.7,3637.5,40.8]
[1736173988271,0.27503,3637.6,3637.5,40.8]
[1736173988469,1.165,3637.7,3636.8,3.2078]
[1736173988970,1.165,3638.1,3637.6,3.2078]
[1736173989174,1.2546,3638.9,3637.6,3.2078]
[1736173989175,1.165,3638.3,3637.6,3.2078]
[1736173989366,1.165,3638.3,3638.0,0.27499]
[1736173989568,1.165,3638.3,3638.1,40.8]
[1736173990166,1.165,3638.3,3638.1,41.07499]
[1736173990368,1.165,3638.3,3638.1,40.8]
[1736173990769,4.73733,3638.9,3638.2,0.27498]
[1736173990974,1.43994,3638.8,3638.1,41.07498]
[1736173991169,1.165,3638.8,3638.1,40.8]
[1736173991382,1.165,3638.8,3638.2,0.27498]
[1736173991672,1.165,3638.8,3638.1,40.8]
[1736173992076,0.27497,3638.4,3638.1,40.8]
[1736173992475,3.2078,3638.5,3637.4,3.2078]
[1736173992872,0.27498,3638.2,3637.5,41.07503]
[1736173993079,3.2078,3638.5,3637.5,40.8]
[1736173993276,1.165,3638.5,3638.1,3.2078]
[1736173993674,1.165,3638.5,3637.8,3.02281851]
[1736173993872,1.165,3638.5,3637.7,3.2078]
[1736173994274,1.165,3638.5,3638.2,0.27498]
[1736173994476,1.165,3638.5,3638.1,3.48278]
[1736173994781,1.165,3638.5,3638.1,3.2078]
[1736173995078,0.27495,3638.7,3638.1,3.2078]
[1736173995377,1.165,3638.6,3637.7,3.2078]
[1736173995578,0.27498,3638.2,3637.7,3.48282]
[1736173995780,3.2078,3638.5,3637.7,3.2078]
[1736173995975,3.2078,3638.9,3637.7,3.2078]
[1736173996178,4.3728,3638.9,3638.6,0.27495]
[1736173996369,4.64773,3638.9,3638.4,0.27496]
[1736173996574,4.64773,3638.9,3638.1,3.2078]
[1736173996575,4.3728,3638.9,3638.1,3.2078]
[1736173996876,4.3728,3638.9,3638.6,0.27495]
[1736173997071,4.3728,3638.9,3638.1,3.2078]
[1736173997072,3.2078,3638.9,3638.7,0.27494]
[1736173997278,1.165,3639.1,3638.6,3.2078]
[1736173997473,7.561,3639.4,3639.0,3.2078]
[1736173997679,4.903,3640.2,3639.0,3.2078]
[1736173997680,3.2078,3640.2,3639.0,3.2078]
[1736173997883,3.2078,3640.2,3639.4,3.2078]
[1736173998078,3.48263,3640.2,3639.4,3.2078]
[1736173998277,3.2078,3640.2,3639.4,3.2078]
[1736173998477,3.2078,3640.2,3639.5,40.8]
[1736173998778,1.165,3640.5,3639.8,3.2078]
[1736173999182,0.27482,3640.4,3640.0,0.27484]
[1736173999379,1.43981,3640.5,3640.1,0.27483]
[1736173999675,0.27482,3640.4,3639.8,3.2078]
[1736173999882,0.27483,3640.2,3639.8,3.2078]
[1736174000081,0.27483,3640.3,3639.8,3.48266]
[1736174000379,3.2078,3640.4,3639.8,3.2078]
[1736174000380,0.27485,3639.9,3639.8,3.2078]
[1736174000676,3.2078,3640.4,3639.3,0.27489]
[1736174000677,0.27483,3640.2,3639.3,0.27489]
[1736174000885,0.68706,3640.3,3639.3,0.27489]
[1736174001083,0.27488,3639.6,3639.2,0.2749]
[1736174001275,3.2078,3640.0,3639.1,0.6109]
[1736174001471,3.2078,3640.0,3639.0,3.2078]
[1736174001689,0.27492,3639.1,3638.7,0.27494]
[1736174002171,1.165,3639.4,3638.6,3.2078]
[1736174002375,0.2749,3639.3,3638.9,0.27492]
[1736174002575,1.43989,3639.4,3638.6,3.2078]
[1736174002780,1.43989,3639.4,3639.0,0.27491]
[1736174003084,3.8161,3641.2,3639.3,3.02281851]
[1736174003281,0.27483,3640.2,3639.9,0.27485]
[1736174003479,0.2748,3640.6,3639.9,0.27485]
[1736174003678,3.2078,3640.7,3639.7,3.2078]
[1736174003887,0.27481,3640.5,3640.2,3.48263]
[1736174004387,3.2078,3640.7,3640.2,3.2078]
[1736174004579,1.165,3640.8,3640.6,3.48259]
[1736174004881,1.165,3641.4,3640.6,3.2078]
[1736174005080,1.165,3641.4,3641.0,3.2078]
[1736174005388,0.27476,3641.2,3641.0,44.0078]
[1736174005982,0.27475,3641.3,3641.0,44.0078]
[1736174006176,1.165,3641.4,3641.0,40.8]
[1736174006177,0.27476,3641.1,3641.0,40.8]
[1736174006381,1.165,3641.4,3641.0,40.8]
[1736174006583,0.2748,3640.7,3640.5,3.2078]
[1736174006876,0.27477,3641.0,3640.5,3.2078]
[1736174007083,1.165,3641.4,3640.5,3.2078]
[1736174007283,0.27478,3640.8,3640.5,3.2078]
[1736174007481,1.165,3641.4,3640.5,3.2078]
[1736174007682,0.27476,3641.1,3640.6,0.27479]
[1736174007992,1.165,3641.4,3640.5,3.2078]
[1736174008500,0.27475,3641.3,3640.7,0.27478]
[1736174008777,1.165,3641.4,3640.5,3.2078]
[1736174008979,0.27477,3641.1,3640.7,0.27479]
[1736174009279,0.27477,3641.1,3640.6,40.8]
[1736174009482,0.7149,3642.4,3640.9,3.2078]
[1736174009780,0.27462,3643.0,3642.1,3.2078]
[1736174010986,1.187,3643.3,3642.8,3.2078]
[1736174011585,0.27462,3643.0,3642.8,3.2078]
[1736174011783,3.2078,3643.2,3642.3,0.27467]
[1736174011987,3.2078,3643.2,3642.2,0.6724]
[1736174011988,0.27461,3643.1,3642.2,0.6724]
[1736174012183,1.187,3643.3,3642.5,3.2078]
[1736174012592,1.187,3643.3,3642.9,3.2078]
[1736174012884,0.68637,3644.0,3642.9,3.2078]
[1736174012885,1.187,3644.1,3643.0,3.02281851]
[1736174013181,4.3948,3644.4,3643.5,3.2078]
[1736174013781,0.27454,3644.1,3643.5,3.48238]
[1736174013984,4.3948,3644.4,3643.5,3.2078]
[1736174014487,0.27456,3643.8,3643.5,3.2078]
[1736174014684,0.27457,3643.7,3643.6,40.8]
[1736174014881,4.3948,3644.0,3643.5,3.2078]
[1736174015087,3.2078,3644.0,3643.5,3.2078]
[1736174015285,4.3948,3644.6,3643.5,6.23061851]
[1736174015485,4.3948,3644.6,3643.8,0.27455]
[1736174015486,0.27451,3644.4,3643.8,0.27455]
[1736174015687,0.27451,3644.5,3643.9,0.27455]
[1736174015889,0.27451,3644.5,3643.7,0.27456]
[1736174016090,4.3948,3644.6,3643.6,40.8]
[1736174016389,0.27452,3644.4,3643.8,0.27455]
[1736174016586,4.3948,3644.6,3643.9,0.27455]
[1736174016891,0.27451,3644.4,3643.9,0.27455]
[1736174017079,0.27455,3644.0,3643.6,40.8]
[1736174017286,0.68627,3644.5,3643.5,3.2078]
[1736174017592,0.27455,3643.9,3643.5,3.2078]
[1736174018091,0.27455,3643.9,3643.5,3.48238]
[1736174018287,0.27454,3644.1,3643.7,0.27456]
[1736174018492,0.27455,3643.9,3643.6,0.27457]
[1736174018689,0.27455,3643.9,3643.5,3.2078]
[1736174018887,0.27455,3643.9,3643.6,0.27457]
[1736174019087,0.27454,3644.0,3643.7,0.27456]
[1736174019288,0.27454,3644.0,3643.8,0.27456]
[1736174019487,3.2078,3644.2,3643.9,0.27454]
[1736174019488,3.48233,3644.2,3643.9,0.27454]
[1736174019688,3.2078,3644.6,3643.5,6.23061851]
[1736174019891,3.2078,3644.6,3643.9,0.27455]
[1736174020091,3.2078,3644.6,3643.5,3.2078]
[1736174020489,0.27456,3643.8,3643.5,3.2078]
[1736174020684,0.68629,3644.4,3643.5,3.2078]
[1736174020897,0.27456,3643.9,3643.6,0.27457]
[1736174021096,12.442,3647.6,3643.4,40.8]
[1736174021097,0.27457,3643.6,3643.4,40.8]
[1736174021396,3.2078,3644.6,3643.5,3.2078]
[1736174021585,1.186,3644.7,3643.9,3.2078]
[1736174021788,1.186,3644.7,3644.0,41.07454]
[1736174021789,0.27452,3644.4,3644.0,41.07454]
[1736174021983,1.186,3644.7,3644.0,40.8]
[1736174022196,0.27452,3644.4,3644.0,41.07454]
[1736174022391,0.27453,3644.1,3644.0,40.8]
[1736174022587,5.08004,3644.7,3643.9,3.2078]
[1736174022789,0.27454,3644.0,3643.9,3.2078]
[1736174022993,0.27453,3644.2,3643.9,44.0078]
[1736174023296,3.2078,3644.3,3643.4,3.2078]
[1736174023496,0.27455,3643.9,3643.4,3.2078]
[1736174023794,3.2078,3644.3,3643.4,3.2078]
[1736174023991,0.68627,3644.5,3643.0,3.2078]
[1736174023992,3.2078,3643.9,3643.0,3.2078]
[1736174024191,3.2078,3643.9,3643.1,0.96781]
[1736174024395,1.186,3643.8,3642.6,3.2078]
[1736174024596,1.186,3643.8,3643.0,3.2078]
[1736174024894,1.186,3643.8,3643.1,40.8]
[1736174025199,1.186,3643.8,3643.7,0.27456]
[1736174025393,4.3938,3644.9,3643.7,6.23061851]
[1736174025691,4.3938,3644.9,3644.6,0.27449]
[1736174025692,3.2078,3644.9,3644.6,0.27449]
[1736174025897,3.2078,3644.9,3643.8,4.5786]
[1736174026190,1.186,3645.2,3642.5,1.3733]
[1736174026191,3.2078,3644.5,3643.4,3.2078]
[1736174026391,1.186,3644.4,3643.6,40.8]
[1736174026694,1.46052,3644.4,3644.0,0.27454]
[1736174026886,1.46052,3644.4,3643.6,40.8]
[1736174026887,0.27452,3644.3,3643.6,40.8]
[1736174027395,1.186,3644.4,3644.1,0.27453]
[1736174027586,3.89396,3645.1,3643.8,3.2078]
[1736174027788,1.186,3645.0,3643.8,3.2078]
[1736174028186,1.186,3645.0,3644.3,0.27452]
[1736174028492,1.186,3645.0,3643.8,3.2078]
[1736174028693,1.46047,3645.0,3644.2,3.2078]
[1736174028998,1.3813,3645.2,3644.8,0.27448]
[1736174028999,0.7122,3645.2,3644.8,0.27448]
[1736174029297,1.46045,3645.3,3644.6,3.2078]
[1736174029298,4.3938,3645.3,3644.6,3.2078]
[1736174029497,3.2078,3645.3,3644.6,3.2078]
[1736174029692,3.2078,3645.3,3644.4,0.68627]
[1736174029897,3.2078,3645.3,3644.3,1.34011]
[1736174029898,3.2078,3645.3,3644.9,0.27447]
[1736174030201,0.27447,3645.0,3644.6,0.27449]
[1736174030408,0.27447,3644.9,3644.5,0.2745]
[1736174030701,4.3938,3645.3,3644.3,0.6538]
[1736174031401,0.27446,3645.2,3644.8,0.27448]
[1736174031604,1.186,3645.3,3644.3,0.6538]
[1736174031797,0.27447,3645.1,3644.4,40.8]
[1736174032000,1.186,3645.3,3644.4,40.8]
[1736174032198,0.27448,3644.9,3644.5,0.2745]
[1736174032395,0.27446,3645.1,3644.7,0.27449]
[1736174032700,0.27446,3645.2,3644.8,0.27448]
[1736174032897,0.27446,3645.2,3644.4,40.8]
[1736174032898,4.3938,3645.3,3644.4,40.8]
[1736174033298,4.66825,3645.3,3644.9,0.27447]
[1736174033499,0.27446,3645.2,3644.9,0.27447]
[1736174033699,0.27446,3645.2,3644.8,0.27448]
[1736174033901,4.3938,3645.3,3644.4,40.8]
[1736174034496,0.27445,3645.2,3644.7,0.27448]
[1736174034690,4.3938,3645.3,3644.4,40.8]
[1736174035101,0.2745,3644.6,3644.4,40.8]
[1736174035300,4.3938,3645.3,3644.4,40.8]
[1736174035301,3.2078,3644.9,3644.4,40.8]
[1736174035602,0.27448,3644.8,3644.0,0.27454]
[1736174035800,0.96069,3644.8,3644.0,0.27454]
[1736174035996,0.27452,3644.3,3643.9,0.27455]
[1736174036190,0.27452,3644.3,3643.8,3.2078]
[1736174036191,3.2078,3644.9,3644.0,40.8]
[1736174036598,0.2745,3644.6,3644.2,0.27452]
[1736174036897,3.2078,3644.9,3644.0,40.8]
[1736174037101,0.27449,3644.7,3644.3,0.27451]
[1736174037300,3.2078,3644.9,3644.2,0.27452]
[1736174037494,0.27452,3644.4,3644.0,40.8]
[1736174037699,0.68622,3644.8,3644.0,41.07454]
[1736174037908,0.27448,3644.8,3644.4,0.27451]
[1736174038198,3.2078,3644.9,3644.0,40.8]
[1736174038399,3.2078,3645.3,3644.2,6.91692851]
[1736174038600,3.2078,3645.3,3644.2,6.23061851]
[1736174038903,3.2078,3645.3,3644.5,0.2745]
[1736174038904,0.27448,3644.9,3644.5,0.2745]
[1736174039102,3.2078,3645.3,3644.2,3.2078]
[1736174039301,0.27448,3644.8,3644.3,0.27452]
[1736174039499,0.68614,3645.2,3644.2,3.2078]
[1736174039697,3.2078,3644.9,3644.2,3.2078]
[1736174040004,0.27452,3644.4,3644.0,41.07454]
[1736174040195,1.186,3644.6,3644.0,40.8]
[1736174040392,0.00535755,3644.9,3644.6,0.27449]
[1736174040608,0.00535755,3644.9,3644.2,3.2078]
[1736174040905,0.2745,3644.6,3644.2,3.48232]
[1736174041199,0.00535755,3644.9,3644.3,1.20125076]
[1736174041404,0.00535755,3644.9,3644.4,2.46696531]
[1736174041595,0.00535755,3644.9,3644.8,0.27448]
[1736174041903,0.00535755,3644.9,3644.8,2.16222201]
[1736174042097,0.00535755,3644.9,3644.8,42.96222201]
[1736174042300,0.68597,3646.2,3644.8,47.1443281]
[1736174042501,1.181,3646.4,3645.4,3.2078]
[1736174042704,0.27439,3646.0,3645.6,0.27442]
[1736174043010,3.977,3647.2,3645.9,2.60053312]
[1736174043210,0.27432,3647.0,3646.5,0.27435]
[1736174043508,3.977,3647.2,3646.6,1.30363423]
[1736174043702,3.977,3647.2,3646.4,3.2078]
[1736174043703,3.11949142,3647.2,3646.7,43.73284654]
[1736174044002,3.11949142,3647.2,3646.8,1.30357412]
[1736174044199,3.11949142,3647.2,3646.9,1.9724363]
[1736174044402,3.11949142,3647.2,3646.7,40.8]
[1736174044606,0.27433,3646.8,3646.7,40.8]
[1736174045009,1.45533,3646.8,3646.7,42.00058161]
[1736174045210,0.27433,3646.8,3646.7,40.8]
[1736174045412,1.45533,3646.8,3646.7,40.8]
[1736174045606,0.27433,3646.8,3646.7,40.8]
[1736174045806,0.27433,3646.8,3646.4,3.2078]
[1736174045807,0.27435,3646.6,3646.4,3.2078]
[1736174046008,1.181,3646.9,3646.4,3.2078]
[1736174046310,3.89364,3646.8,3646.0,3.9412]
[1736174046510,0.27434,3646.7,3646.1,0.27438]
[1736174046705,0.27433,3646.8,3646.4,0.27436]
[1736174047013,1.181,3646.9,3646.2,40.8]
[1736174047304,0.27432,3647.0,3646.4,0.27436]
[1736174047499,0.27432,3647.0,3646.6,0.27435]
[1736174047702,3.2078,3647.2,3646.2,40.8]
[1736174047907,0.27438,3646.2,3646.0,3.9412]
[1736174048101,0.27436,3646.5,3646.1,1.47502454]
[1736174048410,1.181,3647.1,3646.2,40.8]
[1736174048603,0.27434,3646.8,3646.4,0.27436]
[1736174049112,0.27434,3646.7,3646.3,0.27437]
[1736174049414,1.181,3647.1,3646.2,40.8]
[1736174049603,3.2078,3646.8,3646.0,3.9412]
[1736174049908,0.27438,3646.1,3646.0,3.2078]
[1736174050108,1.181,3646.3,3646.0,3.2078]
[1736174050313,1.181,3646.3,3646.1,0.27438]
[1736174050612,1.181,3646.3,3646.0,3.48219]
[1736174050807,1.181,3646.3,3646.0,3.2078]
[1736174051108,0.27437,3646.4,3646.0,3.2078]
[1736174051316,0.27432,3647.0,3646.3,3.0186046]
[1736174051611,0.27429,3647.5,3647.0,0.27431]
[1736174051809,0.27428,3647.5,3647.0,0.27431]
[1736174052006,0.27429,3647.4,3646.7,0.7446]
[1736174052206,3.2078,3648.2,3647.3,3.0186046]
[1736174052402,7.42833305,3649.6,3648.3,3.0186046]
[1736174052608,7.42833305,3649.6,3648.7,3.2078]
[1736174052609,0.27414,3649.4,3648.7,3.2078]
[1736174052920,1.86622,3650.1,3648.7,3.2078]
[1736174052921,2.11026652,3649.9,3648.7,3.2078]
[1736174053208,2.11026652,3649.9,3648.8,3.0186046]
[1736174053414,2.11026652,3649.9,3648.9,0.33341848]
[1736174053602,0.27412,3649.7,3649.1,3.2078]
[1736174053905,0.27414,3649.4,3649.2,0.33293998]
[1736174054106,1.181,3649.5,3649.3,0.33293998]
[1736174054311,1.45513,3649.5,3649.4,0.33293998]
[1736174054711,9.66293,3649.5,3649.4,9.98e-06]
[1736174054902,9.66293,3649.5,3648.2,3.2078]
[1736174054903,0.27422,3648.4,3648.2,3.2078]
[1736174055109,0.68532,3649.6,3648.3,4.23486885]
[1736174055110,1.181,3648.6,3648.3,4.23486885]
[1736174055312,3.2078,3648.8,3648.3,4.23486885]
[1736174055512,1.181,3649.1,3648.3,4.23486885]
[1736174055708,1.181,3649.0,3648.3,4.23486885]
[1736174056012,1.181,3649.0,3648.4,0.27421]
[1736174056314,1.181,3649.0,3648.8,0.27418]
[1736174056512,0.27413,3649.5,3648.9,0.27417]
[1736174056818,3.2078,3649.6,3648.8,0.27418]
[1736174057010,3.48192,3649.6,3648.9,0.7438]
[1736174057209,3.2078,3650.0,3649.3,0.27414]
[1736174057509,3.48189,3650.0,3649.4,0.27413]
[1736174057714,3.48189,3650.0,3649.5,0.27413]
[1736174057908,0.2741,3649.9,3649.0,3.2078]
[1736174058107,3.2078,3650.0,3649.7,0.27411]
[1736174058314,3.2078,3650.0,3649.4,3.2078]
[1736174058515,3.2078,3650.0,3649.5,0.7263]
[1736174059017,0.27412,3649.6,3649.5,0.7263]
[1736174059321,0.27412,3649.6,3649.4,3.2078]
[1736174059322,3.2078,3650.0,3649.0,3.2078]
[1736174059819,3.2078,3650.0,3649.4,3.2078]
[1736174060011,3.4819,3650.0,3649.5,0.27413]
[1736174060316,3.2078,3650.0,3649.8,0.2741]
[1736174060511,0.27406,3650.4,3649.9,1.01919]
[1736174060718,0.27407,3650.3,3650.0,0.7101]
[1736174060919,0.27408,3650.2,3650.0,0.7101]
[1736174061112,3.2078,3650.6,3650.0,0.7101]
[1736174061308,4.3878,3650.6,3650.0,0.7101]
[1736174061712,0.27408,3650.1,3650.0,0.7101]
[1736174062019,0.27411,3649.8,3649.4,3.2078]
[1736174062214,3.2078,3649.7,3649.2,0.7101]
[1736174062514,5.6424,3650.9,3648.6,6.38370644]
[1736174062515,0.27419,3648.7,3648.6,6.38370644]
[1736174063524,0.27418,3648.8,3648.6,6.38370644]
[1736174064021,0.27418,3648.9,3648.4,0.27421]
[1736174064215,3.2078,3648.9,3647.9,1.4552]
[1736174064422,0.27421,3648.4,3647.9,1.72944]
[1736174065020,3.48198,3648.9,3648.0,0.27424]
[1736174065217,3.2078,3648.9,3648.0,0.68561]
[1736174065418,3.2078,3648.9,3647.9,1.4552]
[1736174065719,3.2078,3648.9,3648.5,0.2742]
[1736174065720,0.27418,3648.8,3648.5,0.2742]
[1736174065919,3.2078,3648.9,3648.2,0.27422]
[1736174065920,0.2742,3648.6,3648.2,0.27422]
[1736174066123,3.2078,3648.9,3647.9,1.4552]
[1736174066418,1.18,3649.0,3648.3,6.2264046]
[1736174066623,0.2742,3648.5,3648.3,6.5006246]
[1736174066815,1.18,3649.0,3648.3,6.2264046]
[1736174067115,1.18,3649.0,3648.3,6.5006246]
[1736174067116,0.27421,3648.5,3648.3,6.5006246]
[1736174067313,1.86543,3649.0,3648.3,6.2264046]
[1736174067517,1.18,3649.0,3648.3,3.2078]
[1736174067715,1.18,3649.2,3648.3,3.2078]
[1736174067928,0.27416,3649.1,3648.9,0.27417]
[1736174068119,3.2078,3649.4,3649.3,0.27414]
[1736174068519,3.2078,3649.4,3648.9,0.7149]
[1736174068723,3.2078,3649.4,3649.3,0.27414]
[1736174068921,3.2078,3649.4,3649.3,41.07414]
[1736174069120,0.27412,3649.7,3649.3,40.8]
[1736174069325,0.27412,3649.6,3649.4,0.27413]
[1736174069522,0.27413,3649.5,3649.3,41.07414]
[1736174069734,0.27414,3649.4,3649.3,40.8]
[1736174070225,0.27415,3649.2,3649.1,3.2078]
[1736174070616,0.2742,3648.6,3648.5,3.2078]
[1736174070815,0.2742,3648.6,3648.5,44.0078]
[1736174071020,0.2742,3648.6,3648.5,40.8]
[1736174071324,0.2742,3648.6,3647.8,7.26274351]
[1736174071325,0.27429,3647.4,3647.3,4.24413891]
[1736174071525,0.27429,3647.4,3647.3,4.55861422]
[1736174071829,1.19,3647.8,3647.3,46.31842411]
[1736174072017,1.19,3647.8,3647.7,0.27426]
[1736174072219,0.27423,3648.2,3648.0,0.27424]
[1736174072416,0.27422,3648.3,3648.0,3.2078]
[1736174072627,1.19,3648.4,3648.2,0.27422]
[1736174072827,1.19,3648.4,3648.3,0.27422]
[1736174073130,1.19,3649.1,3648.0,3.89341]
[1736174073427,1.19,3649.1,3648.6,0.27419]
[1736174073631,0.27421,3648.5,3648.3,0.27421]
[1736174073827,0.27421,3648.5,3648.4,0.27421]
[1736174074028,1.19,3649.1,3648.0,3.2078]
[1736174074224,3.2078,3649.2,3648.4,3.2078]
[1736174074422,0.27417,3649.0,3648.8,0.27418]
[1736174074620,0.27418,3648.9,3648.7,0.27418]
[1736174074926,4.3978,3649.6,3648.8,3.2078]
[1736174075120,3.2078,3649.6,3648.9,0.31504046]
[1736174075322,3.2078,3649.6,3648.9,1.513]
[1736174075527,3.48192,3649.6,3649.4,0.27413]
[1736174075724,0.27413,3649.5,3649.3,0.27414]
[1736174075924,3.2078,3649.6,3648.9,1.513]
[1736174076127,0.27414,3649.4,3649.0,0.27417]
[1736174076426,0.27414,3649.4,3649.2,0.27415]
[1736174076626,0.27413,3649.5,3649.1,40.8]
[1736174076824,3.2078,3649.6,3649.2,0.27415]
[1736174076825,0.27414,3649.4,3649.2,0.27415]
[1736174077130,3.2078,3649.6,3649.5,0.27413]
[1736174077328,4.7067,3650.2,3649.1,40.8]
[1736174077522,2.6889,3650.2,3649.6,0.27412]
[1736174077720,0.27411,3649.8,3649.6,0.27412]
[1736174078023,2.6889,3650.2,3649.3,3.0186046]
[1736174078024,1.4989,3650.2,3649.3,3.0186046]
[1736174078232,0.2741,3650.0,3649.7,0.27411]
[1736174078423,0.2741,3649.9,3649.7,0.27411]
[1736174078819,0.2741,3649.9,3649.3,3.0186046]
[1736174079019,4.3978,3650.3,3649.4,1.27504143]
[1736174079229,4.3978,3650.3,3649.4,1.19947663]
[1736174079529,0.68524,3650.0,3649.2,3.2078]
[1736174079729,0.27413,3649.5,3649.3,0.5898799]
[1736174079934,0.27413,3649.5,3649.4,0.3157399]
[1736174080230,0.27413,3649.5,3649.3,0.27414]
[1736174080530,0.27412,3649.6,3649.3,0.27414]
[1736174080727,1.45792,3650.1,3649.3,0.27414]
[1736174080728,0.27413,3649.5,3649.3,0.27414]
[1736174080926,0.27412,3649.6,3649.3,0.27414]
[1736174081121,1.45792,3650.1,3649.0,40.8]
[1736174081320,0.27416,3649.1,3649.0,40.8]
[1736174081527,0.2742,3648.5,3648.4,3.2078]
[1736174081722,0.2742,3648.5,3648.4,4.16763977]
[1736174081927,1.5004,3649.0,3648.4,45.28460539]
[1736174082126,0.27417,3648.9,3648.5,1.55100539]
[1736174082428,0.27417,3648.9,3648.6,0.59115562]
[1736174082627,0.7628,3649.0,3648.7,0.31696562]
[1736174082628,0.27418,3648.8,3648.7,0.31696562]
[1736174083723,0.27418,3648.8,3647.4,7.45193891]
[1736174083724,5.0,3648.8,3647.4,4.24413891]
[1736174083930,3.2078,3647.8,3647.4,4.24413891]
[1736174084133,0.27428,3647.5,3647.4,4.24413891]
[1736174084834,0.27428,3647.5,3647.4,5.87008029]
[1736174085134,0.27428,3647.5,3647.4,0.42557557]
[1736174085532,2.6922,3647.7,3646.1,0.68596]